fUSD/lending_fUSD_20240913
["ID","MTS","AMOUNT","RATE_DAILY","PERIOD"]
[337893057,1726198231946,-3592.10005235,0.00012876,2]
[337893058,1726198232000,-186.14994765,0.00012876,2]
[337893059,1726198232010,-3717.91,0.00012876,2]
[337893060,1726198232020,-3781.16,0.00012877,2]
[337893061,1726198232029,-2493.24251056,0.00012877,2]
[337893062,1726198232041,-17506.74748944,0.00012877,2]
[337893063,1726198232051,-3149.0254,0.00012877,2]
[337893064,1726198232061,-182.28,0.00012877,2]
[337893065,1726198232071,-3752.99,0.00012877,2]
[337893066,1726198232082,-20960.98226889,0.00012877,2]
[337893067,1726198232090,-328.8626243,0.00012877,2]
[337893068,1726198232099,-3676.4,0.00012877,2]
[337893069,1726198232108,-3767.15,0.00012878,2]
[337893070,1726198232117,-3736.15,0.00012879,2]
[337893071,1726198232127,-224.526,0.00012879,2]
[337893072,1726198232136,-6635.1386,0.00012879,2]
[337893073,1726198232148,-156.92210109,0.00012879,2]
[337893074,1726198232157,-1808.0938,0.0001288,2]
[337893075,1726198232166,-3706.86,0.00012883,2]
[337893076,1726198232175,-5728.8793,0.00012886,2]
[337893077,1726198232184,-3815.52,0.00012888,2]
[337893078,1726198232193,-3695.54,0.00012888,2]
[337893079,1726198232202,-3752.15,0.00012888,2]
[337893080,1726198232213,-3769.53,0.00012888,2]
[337893081,1726198232223,-152.7766729,0.00012891,2]
[337893082,1726198232234,-5877.50203498,0.00012891,2]
[337893083,1726198232243,-157.413,0.00012896,2]
[337893084,1726198232251,-5800.0,0.000129,2]
[337893085,1726198232261,-575.6117409,0.00012968,2]
[337893086,1726198232272,-20960.98226885,0.00012969,2]
[337893087,1726198232283,-340.00998797,0.00012973,2]
[337893088,1726198232296,-159.99001203,0.00012973,2]
[337893089,1726198232307,-575.6117409,0.00012973,2]
[337893090,1726198232315,-500.0,0.00012976,2]
[337893091,1726198232325,-500.0,0.00012976,2]
[337893092,1726198232335,-503.61825877,0.00012976,2]
[337893093,1726198232344,-620.96970262,0.00012976,2]
[337893094,1726198232355,-8.02849352,0.00012976,2]
[337893095,1726198232364,-3339.61387217,0.00012976,2]
[337893096,1726198232383,-1848.13612783,0.00012976,2]
[337893097,1726198232392,-2876.8523403,0.00012976,2]
[337893098,1726198232403,-3103.6776597,0.00012976,2]
[337893099,1726198232412,-3947.1,0.00012976,2]
[337893100,1726198232422,-500.0,0.00012976,2]
[337893101,1726198232431,-3097.4127965,0.00012976,2]
[337893102,1726198232443,-1580.2672035,0.00012976,2]
[337893103,1726198232452,-3202.91671206,0.00012976,2]
[337893104,1726198237868,-176.75970062,0.00012891,2]
[337893105,1726198237877,-173.11829924,0.00012976,2]
[337893106,1726198237988,-558.5449887,0.00012976,2]
[337893107,1726198237998,-11.0240068,0.00012976,2]
[337893108,1726198238122,-1494.57978324,0.00012976,2]
[337893285,1726198239985,-1221.51620996,0.00012976,2]
[337893287,1726198239995,-500.0,0.00012976,2]
[337893289,1726198240005,-614.58542107,0.00012976,2]
[337893292,1726198240016,-305.52910785,0.00012976,2]
[337893294,1726198240027,-334.26547108,0.00012976,2]
[337893296,1726198240036,-206.32207462,0.00012976,2]
[337893305,1726198240126,-381.79792538,0.00012976,2]
[337893307,1726198240137,-237.32607462,0.00012976,2]
[337893680,1726198243983,-374.72962927,0.00012976,2]
[337893692,1726198244090,-1053.77429611,0.00012976,2]
[337893694,1726198244100,-1785.86,0.00012976,2]
[337893696,1726198244109,-856.56,0.00012976,2]
[337893698,1726198244119,-500.0,0.00012977,2]
[337893700,1726198244127,-500.0,0.00012977,2]
[337893702,1726198244136,-500.0,0.00012977,2]
[337893704,1726198244152,-315.51928857,0.00012977,2]
[337893707,1726198244175,-184.48071143,0.00012977,2]
[337893709,1726198244184,-83.15397962,0.00012977,2]
[337893881,1726198246007,-416.84602038,0.00012977,2]
[337893883,1726198246016,-500.0,0.00012977,2]
[337893884,1726198246025,-500.0,0.00012977,2]
[337893886,1726198246034,-179.90607475,0.00012977,2]
[337893888,1726198246044,-500.0,0.00012977,2]
[337893890,1726198246053,-500.0,0.00012977,2]
[337893892,1726198246062,-500.0,0.00012977,2]
[337893894,1726198246071,-500.0,0.00012977,2]
[337893896,1726198246081,-309.2473037,0.00012977,2]
[337893898,1726198246091,-500.0,0.00012977,2]
[337893900,1726198246100,-285.18263732,0.00012977,2]
[337893903,1726198246127,-214.81736268,0.00012977,2]
[337893905,1726198246136,-500.0,0.00012977,2]
[337893907,1726198246148,-500.0,0.00012977,2]
[337893909,1726198246157,-500.0,0.00012977,2]
[337893911,1726198246166,-500.0,0.00012977,2]
[337893913,1726198246175,-500.0,0.00012977,2]
[337893915,1726198246184,-500.0,0.00012977,2]
[337893917,1726198246193,-500.0,0.00012977,2]
[337893918,1726198246202,-500.0,0.00012977,2]
[337893920,1726198246211,-500.0,0.00012977,2]
[337893922,1726198246221,-500.0,0.00012977,2]
[337893924,1726198246230,-500.0,0.00012977,2]
[337893926,1726198246240,-500.0,0.00012977,2]
[337893928,1726198246250,-500.0,0.00012977,2]
[337893930,1726198246259,-500.0,0.00012977,2]
[337893932,1726198246268,-500.0,0.00012977,2]
[337893934,1726198246277,-500.0,0.00012977,2]
[337893936,1726198246287,-500.0,0.00012977,2]
[337893938,1726198246296,-9.25789844,0.00012977,2]
[337893942,1726198246328,-300.0,0.00012977,2]
[337894847,1726198312550,367.71,0.00011962,2]
[337894848,1726198363492,328.0,0.00011958,2]
[337894849,1726198386013,200.0,0.00011957,2]
[337894850,1726198421975,190.66,0.00011966,2]
[337894851,1726198445930,250.0,0.00011962,2]
[337894852,1726198532741,2000.0,0.00011968,2]
[337894853,1726198541477,150.95,0.00011963,2]
[337894854,1726198541692,150.95,0.00011967,2]
[337894855,1726198541968,150.95,0.0001197,2]
[337894856,1726198542269,150.95,0.00011974,2]
[337894857,1726198542588,150.95,0.00011977,2]
[337894858,1726198542826,150.95,0.00011981,2]
[337894859,1726198543042,150.95,0.00011984,2]
[337894860,1726198543262,150.95,0.00011988,2]
[337894861,1726198543462,150.95,0.00011991,2]
[337894862,1726198543716,150.95,0.00011995,2]
[337894863,1726198543938,150.95,0.00011998,2]
[337894864,1726198544350,150.95,0.00012002,2]
[337894865,1726198544707,150.95,0.00012005,2]
[337894866,1726198544912,150.95,0.00012009,2]
[337894867,1726198545154,150.95,0.00012012,2]
[337894868,1726198545502,150.95,0.00012016,2]
[337894869,1726198545708,150.95,0.0001202,2]
[337894870,1726198546011,150.95,0.00012023,2]
[337894871,1726198561778,12346.04,0.00011951,2]
[337894872,1726198597393,500.0,0.00011951,2]
[337894873,1726198605405,291.28,0.00011951,2]
[337894874,1726198645449,250.0,0.00011928,2]
[337894875,1726198707409,250.0,0.00011933,2]
[337894876,1726198771206,346.92,0.00010037,2]
[337894877,1726198857588,737.6,0.00011928,2]
[337894878,1726198924321,270.93,0.00010959,2]
[337894879,1726198933115,250.0,0.0001192,2]
[337894880,1726199150527,309.35,0.0001192,2]
[337894887,1726199280484,1050.0,0.00011,2]
[337894888,1726199426337,329.57,0.00010003,2]
[337894892,1726199431888,-329.57,0.00012267,2]
[337894893,1726199431899,-195.71,0.00012525,2]
[337894894,1726199431908,-3957.70808873,0.0001266,2]
[337894895,1726199431918,-414.44513126,0.00012681,2]
[337894896,1726199431927,-243.7004269,0.00012711,2]
[337894897,1726199431937,-1500.0,0.00012764,2]
[337894898,1726199431951,-830.48431709,0.00012764,2]
[337894899,1726199431960,-150.0,0.00012767,2]
[337894900,1726199431970,-770.54408519,0.00012799,2]
[337894901,1726199431980,-150.23336,0.00012847,2]
[337894902,1726199431991,-150.0,0.00012847,2]
[337894903,1726199432000,-153.34329,0.00012847,2]
[337894904,1726199432009,-300.0,0.00012848,2]
[337894905,1726199432018,-470.42018,0.0001285,2]
[337894906,1726199432029,-1777.83308,0.0001285,2]
[337894907,1726199432038,-150.0,0.00012864,2]
[337894908,1726199432047,-470.42018,0.0001287,2]
[337894909,1726199432057,-163.70697134,0.00012874,2]
[337894910,1726199432066,-328.8626243,0.00012874,2]
[337894911,1726199432075,-3726.53,0.00012879,2]
[337894912,1726199432084,-163.70697134,0.00012879,2]
[337894913,1726199432093,-163.70697134,0.00012884,2]
[337894914,1726199432102,-150.0,0.00012888,2]
[337894915,1726199432111,-163.70697134,0.0001289,2]
[337894916,1726199432121,-174.96,0.00012891,2]
[337894917,1726199432130,-152.77667289,0.00012891,2]
[337894918,1726199432139,-163.70697134,0.00012895,2]
[337894919,1726199432148,-163.70697134,0.000129,2]
[337894920,1726199432158,-470.42018,0.0001291,2]
[337894921,1726199432168,-3695.04,0.00012911,2]
[337894922,1726199432177,-23117.68260876,0.00012963,2]
[337894923,1726199432186,-152.9,0.00012964,2]
[337894924,1726199432196,-191.8705803,0.00012965,2]
[337894925,1726199432205,-191.8705803,0.0001297,2]
[337894926,1726199432214,-500.0,0.00012973,2]
[337894927,1726199432224,-807.70719406,0.00012973,2]
[337894928,1726199432234,-4971.59,0.00012973,2]
[337894929,1726199432243,-5731.34,0.00012973,2]
[337894930,1726199432252,-1115.43199531,0.00012973,2]
[337894931,1726199432276,-2667.20800469,0.00012973,2]
[337894932,1726199432285,-99.85840327,0.00012973,2]
[337894936,1726199437853,-400.14159673,0.00012973,2]
[337894937,1726199437863,-1604.58965327,0.00012973,2]
[337894938,1726199438110,-2878.19034673,0.00012973,2]
[337894939,1726199438120,-3770.64,0.00012973,2]
[337894940,1726199438129,-2613.49,0.00012973,2]
[337894941,1726199438138,-1202.12,0.00012973,2]
[337894942,1726199438147,-820.87,0.00012973,2]
[337894943,1726199438156,-500.0,0.00012973,2]
[337894944,1726199438165,-563.62,0.00012973,2]
[337894945,1726199438175,-1596.42,0.00012973,2]
[337894946,1726199438184,-500.0,0.00012973,2]
[337894947,1726199438193,-1711.45,0.00012973,2]
[337894948,1726199438203,-3771.77,0.00012973,2]
[337894949,1726199438214,-500.0,0.00012974,2]
[337894950,1726199438223,-500.0,0.00012974,2]
[337894951,1726199438234,-72892.46,0.00012974,2]
[337894952,1726199438244,-619.84,0.00012974,2]
[337894954,1726199438253,-11579.29,0.00012974,2]
[337894956,1726199438262,-4487.7,0.00012974,2]
[337894958,1726199438272,-792.0,0.00012974,2]
[337894960,1726199438281,-3684.9,0.00012974,2]
[337894962,1726199438290,-1855.12,0.00012974,2]
[337894964,1726199438299,-500.0,0.00012974,2]
[337894965,1726199438308,-500.0,0.00012974,2]
[337894967,1726199438317,-552.40539125,0.00012974,2]
[337894970,1726199438326,-500.0,0.00012974,2]
[337894971,1726199438336,-500.0,0.00012974,2]
[337894973,1726199438346,-2916.83,0.00012974,2]
[337894975,1726199438355,-1184.31,0.00012974,2]
[337894977,1726199438366,-500.0,0.00012974,2]
[337894979,1726199438374,-10515.12,0.00012974,2]
[337894980,1726199438383,-608.5,0.00012974,2]
[337894981,1726199438392,-500.0,0.00012974,2]
[337894982,1726199438401,-895.54,0.00012974,2]
[337894983,1726199438410,-2288.06,0.00012974,2]
[337894984,1726199438419,-151.0,0.00012974,2]
[337894985,1726199438429,-500.0,0.00012974,2]
[337894986,1726199438438,-1364.95,0.00012974,2]
[337894987,1726199438448,-156.163286,0.00012974,2]
[337894988,1726199438458,-151.0,0.00012974,2]
[337894989,1726199438467,-500.0,0.00012974,2]
[337894990,1726199438476,-517.42,0.00012974,2]
[337894991,1726199438485,-923.11,0.00012974,2]
[337894992,1726199438495,-500.0,0.00012974,2]
[337894993,1726199438505,-500.0,0.00012974,2]
[337894994,1726199438514,-594.24,0.00012974,2]
[337894995,1726199438523,-2432.63,0.00012974,2]
[337894996,1726199438533,-500.0,0.00012974,2]
[337894997,1726199438542,-500.0,0.00012974,2]
[337894998,1726199438552,-1347.58,0.00012974,2]
[337895000,1726199438561,-3422.72,0.00012974,2]
[337895002,1726199438571,-1067.16,0.00012974,2]
[337895004,1726199438581,-804.77,0.00012974,2]
[337895006,1726199438591,-864.92,0.00012974,2]
[337895008,1726199438600,-151.0,0.00012974,2]
[337895009,1726199438609,-2209.6,0.00012974,2]
[337895011,1726199438619,-795.18,0.00012974,2]
[337895013,1726199438628,-4383.36,0.00012974,2]
[337895015,1726199438637,-500.0,0.00012974,2]
[337895017,1726199438647,-583.07,0.00012974,2]
[337895019,1726199438656,-7092.79,0.00012974,2]
[337895021,1726199438666,-3412.92,0.00012974,2]
[337895023,1726199438675,-500.0,0.00012974,2]
[337895024,1726199438684,-4133.29,0.00012974,2]
[337895026,1726199438693,-500.0,0.00012974,2]
[337895028,1726199438703,-151.0,0.00012974,2]
[337895030,1726199438712,-161.741497,0.00012974,2]
[337895032,1726199438721,-4100.13,0.00012974,2]
[337895034,1726199438731,-7607.36,0.00012974,2]
[337895036,1726199438740,-500.0,0.00012974,2]
[337895038,1726199438749,-1105.82,0.00012974,2]
[337895040,1726199438758,-920.97,0.00012974,2]
[337895042,1726199438767,-500.0,0.00012974,2]
[337895044,1726199438776,-2086.61,0.00012974,2]
[337895046,1726199438786,-15200.84,0.00012974,2]
[337895048,1726199438795,-500.0,0.00012974,2]
[337895050,1726199438805,-1254.86,0.00012974,2]
[337895052,1726199438814,-2438.48,0.00012974,2]
[337895053,1726199438823,-1886.87,0.00012974,2]
[337895055,1726199438834,-7094.35,0.00012974,2]
[337895057,1726199438843,-500.0,0.00012974,2]
[337895059,1726199438852,-4761.63,0.00012974,2]
[337895061,1726199438861,-10848.76,0.00012974,2]
[337895063,1726199438870,-500.0,0.00012974,2]
[337895065,1726199438879,-151.0,0.00012974,2]
[337895067,1726199438890,-500.0,0.00012974,2]
[337895069,1726199438899,-158.394202,0.00012974,2]
[337895071,1726199438908,-4547.23,0.00012974,2]
[337895072,1726199438917,-3701.04,0.00012974,2]
[337895074,1726199438927,-4639.33,0.00012974,2]
[337895076,1726199438936,-500.0,0.00012974,2]
[337895078,1726199438945,-381.93096487,0.00012974,2]
[337895080,1726199438958,-25499.28,0.00012974,2]
[337895082,1726199438967,-500.0,0.00012974,2]
[337895084,1726199438976,-14136.12,0.00012974,2]
[337895086,1726199438986,-15310.76,0.00012974,2]
[337895088,1726199438995,-1721.28,0.00012974,2]
[337895090,1726199439004,-15701.1,0.00012974,2]
[337895092,1726199439013,-65384.91,0.00012974,2]
[337895093,1726199439022,-3987.41,0.00012974,2]
[337895096,1726199439033,-6489.6,0.00012974,2]
[337895097,1726199439043,-151.0,0.00012974,2]
[337895099,1726199439052,-152.469163,0.00012974,2]
[337895101,1726199439061,-151.0,0.00012974,2]
[337895103,1726199439070,-151.0,0.00012974,2]
[337895105,1726199439080,-5798.69,0.00012974,2]
[337895107,1726199439089,-151.0,0.00012974,2]
[337895109,1726199439098,-152.050365,0.00012974,2]
[337895111,1726199439107,-152.228542,0.00012974,2]
[337895113,1726199439116,-4006.75,0.00012974,2]
[337895115,1726199439125,-500.0,0.00012974,2]
[337895117,1726199439134,-9631.72,0.00012974,2]
[337895119,1726199439144,-151.0,0.00012974,2]
[337895121,1726199439152,-158.565418,0.00012974,2]
[337895123,1726199439162,-507.01616825,0.00012974,2]
[337895125,1726199439171,-2216.74,0.00012974,2]
[337895127,1726199439181,-2224.19,0.00012974,2]
[337895128,1726199439190,-2326.863878,0.00012974,2]
[337895130,1726199439199,-2326.863878,0.00012974,2]
[337895132,1726199439208,-13184.83,0.00012974,2]
[337895134,1726199439217,-2326.863878,0.00012974,2]
[337895136,1726199439226,-2326.863878,0.00012974,2]
[337895138,1726199439235,-1220.09,0.00012974,2]
[337895140,1726199439245,-2326.863878,0.00012974,2]
[337895142,1726199439254,-2326.863878,0.00012974,2]
[337895144,1726199439263,-2326.863878,0.00012974,2]
[337895146,1726199439272,-2326.863878,0.00012974,2]
[337895148,1726199439283,-2335.45,0.00012974,2]
[337895150,1726199439291,-1811.25,0.00012974,2]
[337895152,1726199439300,-202.272691,0.00012974,2]
[337895154,1726199439310,-618.96,0.00012974,2]
[337895156,1726199439319,-151.0,0.00012974,2]
[337895158,1726199439329,-151.0,0.00012974,2]
[337895160,1726199439338,-151.0,0.00012974,2]
[337895162,1726199439346,-12551.09,0.00012974,2]
[337895164,1726199439355,-1070.91,0.00012974,2]
[337895166,1726199439364,-151.0,0.00012975,2]
[337895168,1726199439373,-3352.63,0.00012975,2]
[337895170,1726199439382,-151.0,0.00012975,2]
[337895172,1726199439391,-500.0,0.00012975,2]
[337895173,1726199439400,-1629.91,0.00012975,2]
[337895175,1726199439409,-151.0,0.00012975,2]
[337895177,1726199439418,-500.0,0.00012975,2]
[337895179,1726199439426,-500.0,0.00012975,2]
[337895181,1726199439435,-500.0,0.00012975,2]
[337895183,1726199439444,-500.0,0.00012975,2]
[337895185,1726199439453,-500.0,0.00012975,2]
[337895187,1726199439463,-644.35502344,0.00012975,2]
[337895189,1726199439472,-500.0,0.00012975,2]
[337895191,1726199439481,-2062.32,0.00012975,2]
[337895193,1726199439491,-4049.47,0.00012975,2]
[337895195,1726199439500,-500.0,0.00012975,2]
[337895197,1726199439509,-151.0,0.00012975,2]
[337895199,1726199439518,-151.0,0.00012975,2]
[337895201,1726199439527,-168.38061206,0.00012975,2]
[337895203,1726199439538,-151.0,0.00012975,2]
[337895205,1726199439547,-500.0,0.00012975,2]
[337895207,1726199439556,-1075.99,0.00012975,2]
[337895209,1726199439565,-500.0,0.00012975,2]
[337895211,1726199439574,-1338.85,0.00012975,2]
[337895213,1726199439584,-500.0,0.00012975,2]
[337895214,1726199439593,-4022.93,0.00012975,2]
[337895216,1726199439603,-500.0,0.00012975,2]
[337895218,1726199439612,-866.97,0.00012975,2]
[337895221,1726199439622,-500.0,0.00012975,2]
[337895222,1726199439631,-512.37,0.00012975,2]
[337895224,1726199439640,-3269.08,0.00012975,2]
[337895226,1726199439650,-500.0,0.00012975,2]
[337895229,1726199439659,-4551.42,0.00012975,2]
[337895249,1726199439813,-979.08,0.00012975,2]
[337895251,1726199439823,-500.0,0.00012975,2]
[337895254,1726199439833,-4275.43,0.00012975,2]
[337895256,1726199439842,-151.0,0.00012975,2]
[337895258,1726199439851,-500.0,0.00012975,2]
[337895260,1726199439860,-153.246036,0.00012975,2]
[337895262,1726199439869,-4542.47,0.00012975,2]
[337895264,1726199439879,-500.0,0.00012975,2]
[337895266,1726199439888,-1143.86,0.00012975,2]
[337895268,1726199439897,-2144.13,0.00012975,2]
[337895270,1726199439906,-500.0,0.00012975,2]
[337895271,1726199439916,-500.0,0.00012975,2]
[337895273,1726199439925,-500.0,0.00012975,2]
[337895275,1726199439934,-831.55,0.00012975,2]
[337895277,1726199439943,-500.0,0.00012975,2]
[337895278,1726199439955,-500.0,0.00012975,2]
[337895280,1726199439965,-3418.07,0.00012975,2]
[337895282,1726199439974,-500.0,0.00012975,2]
[337895284,1726199439983,-921.64,0.00012975,2]
[337895286,1726199439993,-151.0,0.00012975,2]
[337895288,1726199440002,-1328.23,0.00012975,2]
[337895290,1726199440011,-160.643869,0.00012975,2]
[337895292,1726199440021,-500.0,0.00012975,2]
[337895294,1726199440030,-1886.76,0.00012975,2]
[337895296,1726199440040,-2067.96,0.00012975,2]
[337895298,1726199440049,-500.0,0.00012975,2]
[337895300,1726199440058,-500.0,0.00012975,2]
[337895302,1726199440067,-500.0,0.00012975,2]
[337895303,1726199440077,-500.0,0.00012975,2]
[337895305,1726199440087,-2474.93,0.00012975,2]
[337895307,1726199440096,-500.0,0.00012975,2]
[337895309,1726199440105,-500.0,0.00012975,2]
[337895312,1726199440115,-5631.64,0.00012975,2]
[337895313,1726199440124,-500.0,0.00012975,2]
[337895315,1726199440134,-3482.6,0.00012975,2]
[337895317,1726199440143,-151.0,0.00012975,2]
[337895319,1726199440152,-500.0,0.00012975,2]
[337895321,1726199440161,-151.0,0.00012975,2]
[337895323,1726199440171,-151.0,0.00012975,2]
[337895325,1726199440180,-151.0,0.00012975,2]
[337895327,1726199440188,-151.0,0.00012975,2]
[337895329,1726199440198,-151.0,0.00012975,2]
[337895331,1726199440208,-218.958007,0.00012975,2]
[337895333,1726199440217,-500.0,0.00012975,2]
[337895335,1726199440226,-500.0,0.00012975,2]
[337895337,1726199440235,-1591.07,0.00012975,2]
[337895339,1726199440244,-500.0,0.00012975,2]
[337895340,1726199440253,-3534.51,0.00012975,2]
[337895342,1726199440262,-500.0,0.00012975,2]
[337895344,1726199440271,-500.0,0.00012975,2]
[337895346,1726199440281,-631.11,0.00012975,2]
[337895348,1726199440290,-5028.91,0.00012975,2]
[337895350,1726199440299,-500.0,0.00012975,2]
[337895352,1726199440309,-3209.02,0.00012975,2]
[337895353,1726199440318,-500.0,0.00012975,2]
[337895355,1726199440327,-500.0,0.00012975,2]
[337895357,1726199440337,-3859.84,0.00012975,2]
[337895359,1726199440345,-500.0,0.00012975,2]
[337895361,1726199440354,-500.0,0.00012975,2]
[337895363,1726199440364,-151.0,0.00012975,2]
[337895365,1726199440374,-151.0,0.00012975,2]
[337895367,1726199440383,-151.0,0.00012975,2]
[337895369,1726199440392,-151.0,0.00012975,2]
[337895371,1726199440401,-236.837138,0.00012975,2]
[337895373,1726199440410,-500.0,0.00012975,2]
[337895375,1726199440419,-2262.6,0.00012975,2]
[337895376,1726199440428,-151.0,0.00012975,2]
[337895378,1726199440437,-151.164534,0.00012975,2]
[337895380,1726199440446,-500.0,0.00012975,2]
[337895382,1726199440455,-213.819669,0.00012975,2]
[337895384,1726199440465,-213.819669,0.00012975,2]
[337895386,1726199440475,-213.819669,0.00012975,2]
[337895388,1726199440485,-213.819669,0.00012975,2]
[337895390,1726199440494,-213.819669,0.00012975,2]
[337895391,1726199440503,-2728.52,0.00012975,2]
[337895393,1726199440512,-213.819669,0.00012975,2]
[337895395,1726199440521,-213.819669,0.00012975,2]
[337895397,1726199440530,-213.819669,0.00012975,2]
[337895399,1726199440540,-213.819669,0.00012975,2]
[337895401,1726199440550,-213.819669,0.00012975,2]
[337895403,1726199440559,-213.819669,0.00012975,2]
[337895405,1726199440568,-213.819669,0.00012975,2]
[337895407,1726199440578,-213.819669,0.00012975,2]
[337895409,1726199440588,-213.819669,0.00012975,2]
[337895411,1726199440598,-213.819669,0.00012975,2]
[337895412,1726199440608,-808.65,0.00012975,2]
[337895414,1726199440620,-213.819669,0.00012975,2]
[337895416,1726199440630,-538.4871777,0.00012975,2]
[337895418,1726199440639,-500.0,0.00012975,2]
[337895420,1726199440648,-4650.91,0.00012975,2]
[337895422,1726199440657,-1438.14,0.00012975,2]
[337895424,1726199440666,-500.0,0.00012975,2]
[337895425,1726199440675,-500.0,0.00012975,2]
[337895427,1726199440685,-500.0,0.00012975,2]
[337895429,1726199440694,-500.0,0.00012975,2]
[337895431,1726199440704,-2362.74,0.00012975,2]
[337895433,1726199440713,-4556.22,0.00012975,2]
[337895435,1726199440723,-500.0,0.00012975,2]
[337895436,1726199440732,-4068.23,0.00012975,2]
[337895438,1726199440742,-312.28751302,0.00012975,2]
[337895440,1726199440751,-389.99175933,0.00012975,2]
[337895442,1726199440760,-151.0,0.00012975,2]
[337895444,1726199440770,-2259.41,0.00012975,2]
[337895446,1726199440779,-151.0,0.00012975,2]
[337895448,1726199440789,-170.407976,0.00012975,2]
[337895450,1726199440798,-500.0,0.00012975,2]
[337895452,1726199440807,-1849.81,0.00012975,2]
[337895453,1726199440816,-500.0,0.00012975,2]
[337895455,1726199440826,-2560.0,0.00012975,2]
[337895457,1726199440835,-2866.56,0.00012975,2]
[337895459,1726199440845,-500.0,0.00012975,2]
[337895461,1726199440854,-500.0,0.00012975,2]
[337895463,1726199440863,-5531.54,0.00012975,2]
[337895465,1726199440873,-500.0,0.00012975,2]
[337895467,1726199440882,-155.085792,0.00012975,2]
[337895469,1726199440891,-151.0,0.00012975,2]
[337895471,1726199440901,-152.059618,0.00012975,2]
[337895473,1726199440910,-500.0,0.00012975,2]
[337895475,1726199440919,-2060.58,0.00012975,2]
[337895477,1726199440930,-2226.3,0.00012975,2]
[337895479,1726199440940,-500.0,0.00012975,2]
[337895481,1726199440953,-1459.42,0.00012975,2]
[337895483,1726199440964,-500.0,0.00012975,2]
[337895484,1726199440973,-3336.93,0.00012975,2]
[337895486,1726199440982,-3458.77,0.00012975,2]
[337895488,1726199440994,-151.896965,0.00012975,2]
[337895490,1726199441004,-236.892561,0.00012975,2]
[337895492,1726199441014,-500.0,0.00012975,2]
[337895494,1726199441024,-500.0,0.00012975,2]
[337895496,1726199441034,-1749.44,0.00012975,2]
[337895498,1726199441044,-622.51,0.00012975,2]
[337895500,1726199441053,-500.0,0.00012975,2]
[337895502,1726199441063,-1179.4,0.00012975,2]
[337895504,1726199441074,-500.0,0.00012975,2]
[337895507,1726199441085,-500.0,0.00012975,2]
[337895509,1726199441094,-500.0,0.00012975,2]
[337895511,1726199441104,-1633.66,0.00012975,2]
[337895513,1726199441116,-500.0,0.00012975,2]
[337895515,1726199441126,-494.4867977,0.00012975,2]
[337895517,1726199441135,-500.0,0.00012975,2]
[337895519,1726199441144,-634.67,0.00012975,2]
[337895521,1726199441153,-1550.36,0.00012975,2]
[337895523,1726199441162,-3968.4,0.00012975,2]
[337895525,1726199441172,-1495.11,0.00012975,2]
[337895527,1726199441181,-500.0,0.00012975,2]
[337895529,1726199441191,-1495.11,0.00012975,2]
[337895531,1726199441200,-1495.11,0.00012975,2]
[337895533,1726199441209,-546.3,0.00012975,2]
[337895535,1726199441219,-3985.53,0.00012975,2]
[337895536,1726199441227,-500.0,0.00012975,2]
[337895538,1726199441237,-999.95,0.00012975,2]
[337895540,1726199441247,-500.0,0.00012975,2]
[337895542,1726199441257,-153.485834,0.00012975,2]